bitfinex/quotes_ETHUSD_20240828
["timestamp","ask_amount","ask_price","bid_price","bid_amount"]
[1724855892699,3.0,2518.6,2518.2,3.97095]
[1724855892984,3.0,2518.6,2518.3,0.13510532]
[1724855893396,0.92908,2518.6,2518.2,3.97108]
[1724855893687,3.0,2518.7,2518.4,0.13503888]
[1724855893895,6.36636,2519.1,2518.5,3.97047]
[1724855894095,3.0,2519.0,2518.5,4.10544245]
[1724855894253,8.003455,2519.0,2518.5,0.13497245]
[1724855894449,11.973435,2519.0,2518.5,0.13497245]
[1724855894690,6.96986,2519.0,2518.5,4.10555245]
[1724855894851,6.96986,2519.0,2518.5,4.10548245]
[1724855895289,3.97006,2518.9,2518.5,0.13497245]
[1724855895462,6.96986,2519.0,2518.5,0.13497245]
[1724855895653,6.96986,2519.0,2518.3,3.97083]
[1724855895853,6.96986,2519.0,2518.6,0.13490602]
[1724855895854,10.93978,2519.0,2518.6,0.13490602]
[1724855896165,3.0,2519.0,2518.7,0.1348396]
[1724855896366,2.3966,2519.1,2518.7,0.1348396]
[1724855896367,3.0,2519.1,2518.7,0.1348396]
[1724855896792,6.2903,2519.4,2518.8,3.97011]
[1724855897016,10.25962,2519.4,2518.8,3.97011]
[1724855897290,10.28456,2519.0,2518.9,0.13470676]
[1724855897621,10.28456,2519.0,2518.2,3.97099]
[1724855897622,3.97014,2518.8,2518.2,3.97099]
[1724855897828,3.97065,2518.5,2518.0,7.94264]
[1724855897978,3.97039,2518.7,2518.3,0.13510532]
[1724855898187,3.0,2518.6,2518.2,3.97105]
[1724855898488,3.0,2518.6,2518.3,0.13510532]
[1724855898693,3.97076,2518.5,2518.3,0.13510532]
[1724855898880,3.97076,2518.5,2517.9,6.31711]
[1724855898881,6.97046,2518.6,2518.4,0.13503888]
[1724855899081,3.97061,2518.5,2518.4,0.13503888]
[1724855899283,3.97081,2518.4,2517.9,3.97154]
[1724855900218,6.97053,2518.6,2518.1,3.9711]
[1724855900524,6.97053,2518.6,2518.0,3.97129]
[1724855900901,6.97053,2518.6,2518.0,7.9426]
[1724855901102,3.97061,2518.5,2518.0,3.97129]
[1724855901404,3.97078,2518.4,2517.9,3.97146]
[1724855901727,3.97062,2518.5,2518.0,4.52139]
[1724855902333,3.97078,2518.4,2518.0,0.55]
[1724855902534,3.0,2518.6,2517.8,3.97163]
[1724855902737,3.97101,2518.3,2517.6,6.37758]
[1724855903035,3.97112,2518.2,2517.7,23.94300124]
[1724855903541,3.97127,2518.1,2517.8,19.42124124]
[1724855903829,3.97149,2518.0,2517.8,19.42124124]
[1724855904027,1.031243,2518.2,2517.8,19.42124124]
[1724855904028,7.94312,2517.9,2517.8,19.42124124]
[1724855904215,3.97191,2517.7,2517.3,19.42124124]
[1724855904713,6.45706,2517.9,2517.3,23.39373124]
[1724855904917,3.97156,2517.9,2517.4,3.97233]
[1724855905152,3.97173,2517.8,2517.3,26.46910836]
[1724855905528,3.97156,2517.9,2517.4,3.97233]
[1724855905730,3.97156,2517.9,2517.4,7.12412271]
[1724855906060,3.97134,2518.1,2517.6,3.97194]
[1724855906261,3.0,2518.0,2517.7,3.97184]
[1724855906552,3.0,2518.2,2517.7,3.97184]
[1724855906755,3.0,2518.2,2517.8,3.97171]
[1724855906959,3.97102,2518.3,2517.8,3.97171]
[1724855907162,6.41183,2518.5,2517.6,0.54034627]
[1724855907341,0.23447,2518.9,2518.1,3.97112]
[1724855907342,6.26748,2518.9,2518.1,3.97112]
[1724855907526,3.97039,2518.7,2518.1,7.94228]
[1724855907968,3.97039,2518.7,2518.2,3.97108]
[1724855908178,3.96994,2519.0,2518.3,0.07941414]
[1724855908360,3.97013,2518.9,2518.4,3.97069]
[1724855908677,3.96969,2519.1,2518.6,3.97044]
[1724855908902,6.31451,2519.2,2518.7,3.9703]
[1724855908903,3.96961,2519.2,2518.7,3.9703]
[1724855909091,7.93927,2519.2,2518.7,0.76406041]
[1724855909231,3.96977,2519.1,2518.7,0.68466182]
[1724855909426,3.96961,2519.2,2518.7,0.68466182]
[1724855909631,7.93921,2519.2,2518.7,0.68466182]
[1724855910059,3.96972,2519.1,2518.7,0.68466182]
[1724855910276,3.97007,2518.9,2518.7,0.13466182]
[1724855910636,3.96983,2519.0,2518.5,3.97052]
[1724855910868,3.96959,2519.2,2518.8,0.13414409]
[1724855911073,3.96978,2519.1,2518.5,8.338102]
[1724855911243,3.96967,2519.1,2518.9,0.13407768]
[1724855911451,3.97044,2518.7,2518.2,19.42124124]
[1724855911673,3.9704,2518.7,2518.0,3.97127]
[1724855911878,3.97065,2518.5,2518.0,3.97127]
[1724855912037,3.97065,2518.5,2518.0,4.596357]
[1724855912879,3.97065,2518.5,2518.0,8.567677]
[1724855913081,3.97016,2518.8,2518.3,3.97083]
[1724855913379,3.97016,2518.8,2518.3,4.367913]
[1724855913551,3.97016,2518.8,2518.3,3.97083]
[1724855914169,3.97032,2518.7,2518.1,3.97114]
[1724855914350,3.97032,2518.7,2518.2,0.55]
[1724855914537,4.764368,2518.7,2518.2,0.55]
[1724855914742,3.97016,2518.8,2518.3,23.39216124]
[1724855914939,7.9404,2518.8,2518.3,23.39216124]
[1724855915136,3.97016,2518.8,2518.3,19.42124124]
[1724855915440,3.97037,2518.7,2518.3,19.42124124]
[1724855915666,7.94045,2518.8,2518.3,19.42124124]
[1724855915869,3.9703,2518.7,2518.3,19.42124124]
[1724855916787,3.97016,2518.8,2518.3,19.42124124]
[1724855916788,5.4907,2519.0,2518.3,19.42124124]
[1724855916940,7.94108,2518.6,2518.3,19.42124124]
[1724855917141,3.97053,2518.6,2518.3,19.42124124]
[1724855917444,4.5887567,2518.9,2518.3,19.42124124]
[1724855917771,6.97024,2518.8,2518.3,23.39215124]
[1724855917967,3.97044,2518.7,2518.3,19.42124124]
[1724855918287,6.97024,2518.8,2518.3,19.42124124]
[1724855918449,10.94051,2518.8,2518.3,19.42124124]
[1724855918642,6.97024,2518.8,2518.3,19.42124124]
[1724855919143,6.97024,2518.8,2518.3,23.39215124]
[1724855919339,10.9405,2518.8,2518.3,23.39215124]
[1724855919898,3.97034,2518.7,2518.3,19.42124124]
[1724855920231,4.34312,2518.8,2518.3,19.42124124]
[1724855920343,3.97049,2518.6,2518.3,19.42124124]
[1724855920542,3.97077,2518.4,2518.3,19.42124124]
[1724855920791,3.97063,2518.5,2518.3,19.42124124]
[1724855921079,3.97033,2518.7,2518.3,19.42124124]
[1724855921288,3.97023,2518.8,2518.3,25.73138236]
[1724855921887,3.97023,2518.8,2518.4,0.55]
[1724855922255,2.3936,2519.3,2518.5,4.04986605]
[1724855922577,3.96962,2519.2,2518.7,3.97029]
[1724855922778,3.96962,2519.2,2518.7,4.04968721]
[1724855922979,3.96962,2519.2,2518.6,0.55]
[1724855923181,0.396962,2519.2,2518.6,0.55]
[1724855923390,3.97045,2518.6,2518.5,19.42124124]
[1724855923998,6.97045,2518.6,2518.5,19.42124124]
[1724855924667,3.97033,2518.7,2518.5,19.42124124]
[1724855924668,7.94076,2518.7,2518.5,19.42124124]
[1724855925471,3.97045,2518.6,2518.5,19.42124124]
[1724855926564,3.97016,2518.8,2518.5,19.42124124]
[1724855926763,3.0,2518.7,2518.6,19.42124124]
[1724855927115,3.96959,2519.2,2518.6,19.97124124]
[1724855927401,3.96959,2519.2,2518.7,0.55]
[1724855927402,3.96983,2519.0,2518.7,0.55]
[1724855927835,2.4918,2519.4,2518.7,0.55]
[1724855928047,4.34362882,2520.2,2518.7,0.55]
[1724855928048,7.93796,2519.6,2519.0,3.9697]
[1724855928227,3.96866,2519.8,2519.1,1.343967]
[1724855928524,3.96866,2519.8,2519.2,4.0487886]
[1724855928700,6.46011,2520.0,2519.4,3.96917]
[1724855928701,3.96831,2520.0,2519.4,3.96917]
[1724855929024,3.96831,2520.0,2519.5,0.55]
[1724855929397,3.96841,2519.9,2519.5,0.55]
[1724855929619,3.96831,2520.0,2519.5,0.55]
[1724855930093,3.96831,2520.0,2519.0,2.3398]
[1724855930094,3.96897,2519.6,2519.0,6.30949]
[1724855930299,3.96897,2519.6,2519.1,0.55]
[1724855930504,3.96897,2519.6,2519.1,1.235949]
[1724855930734,3.96897,2519.6,2519.1,0.55]
[1724855931085,3.96865,2519.8,2519.1,0.55]
[1724855931433,3.0,2519.7,2519.1,0.55]
[1724855931625,3.0,2519.7,2519.2,3.96948]
[1724855931829,2.3688,2520.2,2519.4,3.96911]
[1724855931830,6.33681,2520.2,2519.4,3.96911]
[1724855932039,3.96801,2520.2,2519.6,6.25607]
[1724855932409,3.96825,2520.0,2519.7,0.55]
[1724855932798,3.96825,2520.0,2519.5,0.55]
[1724855933821,3.96825,2520.0,2519.4,0.55]
[1724855934036,3.96825,2520.0,2519.4,4.74507]
[1724855934191,3.96825,2520.0,2519.4,8.71418]
[1724855934900,3.96825,2520.0,2519.4,4.74507]
[1724855935102,7.93664,2520.0,2519.4,4.74507]
[1724855935385,3.0,2520.4,2519.4,0.55]
[1724855935386,3.96882,2519.7,2519.4,0.55]
[1724855935541,6.3304,2519.9,2519.4,0.55]
[1724855935884,3.96868,2519.8,2519.4,0.55]
[1724855936175,10.29891,2519.9,2519.3,4.51932]
[1724855936400,7.93701,2519.9,2519.3,4.51932]
[1724855936689,3.96877,2519.7,2519.3,0.55]
[1724855937778,7.93762,2519.7,2519.3,0.55]
[1724855938079,3.96906,2519.5,2519.3,0.55]
[1724855938279,3.96906,2519.5,2519.1,0.55]
[1724855938484,3.96877,2519.7,2519.4,0.1274331]
[1724855938639,3.96889,2519.6,2519.1,4.51965]
[1724855939196,3.96889,2519.6,2519.2,0.12756588]
[1724855939356,3.96877,2519.7,2519.3,0.55]
[1724855939557,3.96877,2519.7,2519.4,0.1274331]
[1724855940654,7.9376,2519.7,2519.4,0.1274331]
[1724855941072,3.96877,2519.7,2519.4,0.1274331]
[1724855941292,3.96849,2519.9,2519.4,0.1274331]
[1724855941465,3.96859,2519.8,2519.5,0.55]
[1724855941667,6.96811,2520.1,2519.6,3.96879]
[1724855941896,3.96811,2520.1,2519.7,0.62936484]
[1724855942099,6.3298,2520.3,2519.7,4.59807484]
[1724855942259,3.96841,2519.9,2519.8,0.1271676]
[1724855942459,7.93682,2519.9,2519.8,0.1271676]
[1724855942660,3.96873,2519.7,2519.2,3.96947]
[1724855942963,3.96815,2520.1,2519.6,3.9688]
[1724855943276,3.96771,2520.4,2519.8,3.96842]
[1724855943458,3.96757,2520.5,2520.0,3.96813]
[1724855943812,6.36309,2520.9,2520.2,3.96779]
[1724855943975,2.3962,2520.9,2520.5,3.96744]
[1724855944187,7.93328,2521.1,2520.3,0.49675825]
[1724855944188,3.96661,2521.1,2520.6,0.07934041]
[1724855944387,3.96661,2521.1,2520.7,0.67633813]
[1724855944583,3.96564,2521.7,2520.8,4.0462256]
[1724855944891,3.96604,2521.5,2521.0,3.96667]
[1724855945106,3.96604,2521.5,2521.0,4.04599299]
[1724855945263,3.96564,2521.7,2521.1,4.64257291]
[1724855945614,3.96575,2521.6,2521.1,0.67607291]
[1724855945766,3.9659,2521.5,2521.1,0.67607291]
[1724855945967,3.96622,2521.3,2521.1,0.12607291]
[1724855946175,3.96622,2521.3,2520.4,3.96755]
[1724855946176,3.96636,2521.2,2520.4,6.25055]
[1724855946417,3.96661,2521.1,2520.5,0.67647077]
[1724855946615,3.96661,2521.1,2520.5,4.64392077]
[1724855946998,3.96661,2521.1,2520.5,0.67647077]
[1724855947200,3.96689,2520.9,2520.5,0.67647077]
[1724855947515,8.65297847,2521.2,2520.5,4.64383077]
[1724855947669,4.68648847,2521.2,2520.5,0.67647077]
[1724855948167,3.96677,2521.0,2520.5,0.67647077]
[1724855948698,0.70374885,2521.1,2520.5,4.64392077]
[1724855948901,6.96613,2521.4,2520.7,6.24231]
[1724855949315,3.96624,2521.3,2520.8,0.67482154]
[1724855949509,3.0,2521.2,2520.8,0.67482154]
[1724855949874,6.96639,2521.2,2520.8,0.67482154]
[1724855950214,3.0,2521.2,2520.8,0.67482154]
[1724855950579,3.0,2521.3,2520.8,0.67482154]
[1724855950774,6.46021,2521.6,2520.9,0.0793293]
[1724855951026,3.96581,2521.6,2521.0,0.67474524]
[1724855951222,3.9655,2521.8,2521.0,0.67474524]
[1724855951223,3.9655,2521.8,2521.0,5.44068397]
[1724855951526,3.9655,2521.8,2521.1,3.96641]
[1724855951679,3.9655,2521.8,2521.2,0.55]
[1724855951881,0.48683465,2522.4,2521.4,3.96603]
[1724855951882,3.96517,2522.0,2521.4,3.96603]
[1724855952091,3.96517,2522.0,2521.5,0.55]
[1724855952382,3.96573,2521.6,2521.5,0.12430823]
[1724855952612,3.96573,2521.6,2520.8,3.96694]
[1724855952613,3.96611,2521.4,2520.8,3.96694]
[1724855952876,6.30983,2521.6,2521.5,0.12408306]
[1724855953124,6.30983,2521.6,2520.9,0.55]
[1724855953125,3.96622,2521.3,2520.9,0.55]
[1724855953322,7.93194,2521.5,2520.9,0.55]
[1724855953509,3.96592,2521.5,2521.0,0.12441449]
[1724855953721,1.327604,2521.5,2521.0,0.12441449]
[1724855953926,7.93304,2521.1,2521.0,0.12441449]
[1724855954141,7.93304,2521.1,2520.3,6.30455]
[1724855954142,3.96676,2521.0,2520.3,6.30455]
[1724855954358,2.3441,2521.1,2519.9,2.3368]
[1724855954359,3.96762,2520.4,2519.9,2.3368]
[1724855954499,3.96691,2520.9,2520.0,3.96819]
[1724855954826,3.96755,2520.5,2519.9,2.3368]
[1724855955547,5.3441,2521.0,2519.6,2.3368]
[1724855955695,3.96787,2520.3,2519.7,3.96871]
[1724855956123,3.96787,2520.3,2519.6,6.30553]
[1724855956407,3.96804,2520.2,2519.6,10.27431]
[1724855956640,3.96804,2520.2,2519.7,1.027431]
[1724855956794,5.3441,2520.4,2519.7,1.027431]
[1724855956795,3.96811,2520.1,2519.7,1.027431]
[1724855957000,3.96811,2520.1,2519.5,3.96903]
[1724855957411,3.96811,2520.1,2519.6,3.96885]
[1724855958056,3.96811,2520.1,2519.5,0.7019455]
[1724855958258,5.3441,2520.4,2519.0,3.96972]
[1724855958259,3.96864,2519.8,2519.0,3.96972]
[1724855958476,3.96955,2519.2,2518.6,2.4185]
[1724855958759,3.96995,2519.0,2518.2,3.97099]
[1724855958958,3.0,2519.1,2518.4,3.97068]
[1724855959120,3.0,2519.1,2518.6,3.97036]
[1724855959478,3.0,2519.1,2518.4,3.97066]
[1724855959641,3.96984,2519.0,2518.4,4.391913]
[1724855960173,3.0,2519.1,2518.7,3.97018]
[1724855960394,3.0,2519.3,2518.8,0.55]
[1724855960519,3.96961,2519.2,2518.8,0.55]
[1724855960719,3.96961,2519.2,2518.6,0.55]
[1724855960964,3.0,2519.1,2518.6,3.97034]
[1724855961163,2.32,2519.5,2518.8,3.97001]
[1724855961326,5.32,2519.5,2518.8,3.97001]
[1724855961678,5.32,2519.5,2518.9,4.59926644]
[1724855961844,9.28913,2519.5,2518.9,4.59926644]
[1724855962054,10.614938,2519.5,2518.9,0.55]
[1724855962358,3.96944,2519.3,2518.7,4.52026]
[1724855962664,10.614938,2519.5,2518.8,3.97013]
[1724855962837,3.96937,2519.3,2518.9,0.55]
[1724855963049,3.97005,2518.9,2518.2,3.97098]
[1724855963358,3.96972,2519.1,2518.4,3.97067]
[1724855963563,5.0307238,2519.4,2518.2,8.580928]
[1724855963736,3.97016,2518.8,2518.2,4.609918]
[1724855963933,3.97016,2518.8,2518.2,3.97097]
[1724855964367,6.27952,2518.9,2517.8,3.97156]
[1724855964368,3.9707,2518.5,2517.8,3.97156]
[1724855964540,3.97071,2518.5,2518.0,3.97137]
[1724855964746,7.94047,2518.8,2518.2,3.97108]
[1724855964953,3.97023,2518.8,2518.2,3.97108]
[1724855965359,3.97056,2518.6,2518.0,3.97136]
[1724855965595,3.97055,2518.6,2518.0,3.97136]
[1724855965755,3.97043,2518.7,2518.1,0.55]
[1724855965971,3.9703,2518.7,2517.8,0.794339]
[1724855966187,3.97008,2518.9,2518.2,3.97096]
[1724855966395,3.0,2518.8,2518.3,0.397096]
[1724855966599,3.96976,2519.1,2518.5,3.9706]
[1724855966812,3.96945,2519.3,2518.8,3.97003]
[1724855967108,3.96919,2519.4,2518.8,8.01947561]
[1724855967285,3.96913,2519.5,2518.8,8.01947561]
[1724855967286,3.96938,2519.3,2518.9,0.55]
[1724855968007,2.4753,2519.2,2517.9,2.4329]
[1724855968208,3.96983,2519.0,2518.5,3.97059]
[1724855968360,2.4753,2519.2,2518.5,3.97059]
[1724855968361,6.44496,2519.2,2518.5,3.97049]
[1724855968564,3.96945,2519.3,2518.6,0.20763506]
[1724855968890,3.96977,2519.1,2518.6,0.12823922]
[1724855969062,4.666747,2519.1,2518.6,0.12823922]
[1724855969403,6.96908,2519.5,2518.6,0.12823922]
[1724855969404,3.96943,2519.3,2518.6,0.12823922]
[1724855969695,2.4753,2519.6,2518.6,0.12823922]
[1724855969696,3.96969,2519.1,2518.7,0.55]
[1724855969906,7.9395,2519.1,2518.7,0.55]
[1724855970193,3.96987,2519.0,2518.8,0.12810637]
[1724855970401,3.96987,2519.0,2518.7,0.55]
[1724855970607,3.96987,2519.0,2518.6,0.55]
[1724855970761,3.96987,2519.0,2518.7,0.12817279]
[1724855970960,3.96969,2519.1,2518.7,0.12817279]
[1724855971585,7.93949,2519.1,2518.7,0.12817279]
[1724855971898,5.063601,2519.1,2518.7,0.12817279]
[1724855972097,3.96969,2519.1,2518.7,0.12817279]
[1724855973588,3.0,2519.2,2518.7,4.09846279]
[1724855973799,3.96938,2519.3,2518.8,0.55]
[1724855973976,3.96938,2519.3,2518.9,0.12896292]
[1724855974427,6.96914,2519.5,2518.9,4.09886292]
[1724855974726,3.96936,2519.3,2519.0,0.55]
[1724855975016,6.96914,2519.5,2519.0,0.55]
[1724855975017,0.52992032,2519.4,2519.1,0.12871093]
[1724855975216,10.93832,2519.5,2519.1,0.12871093]
[1724855975421,12.279682,2519.5,2519.1,0.12871093]
[1724855975634,3.0,2519.5,2519.1,4.09834093]
[1724855975842,3.96861,2519.8,2519.2,4.5194]
[1724855975984,6.32348,2519.9,2519.3,4.83111409]
[1724855976178,10.29204,2519.9,2519.4,0.12851175]
[1724855976408,3.96848,2519.9,2519.4,0.12851175]
[1724855976796,2.355,2520.2,2519.4,0.12851175]
[1724855977129,2.355,2520.2,2519.5,0.62937063]
[1724855977330,3.96748,2520.5,2519.9,3.96831]
[1724855977629,3.96748,2520.5,2520.0,4.64614212]
[1724855977784,3.96762,2520.4,2520.0,0.67790212]
[1724855978696,4.99163,2520.5,2520.0,0.67790212]
[1724855979004,8.9592,2520.5,2520.0,0.67790212]
[1724855979211,3.96763,2520.4,2520.0,0.67790212]
[1724855979796,3.96763,2520.4,2520.0,0.12790212]
[1724855979797,3.96809,2520.1,2520.0,0.12790212]
[1724855980135,3.96809,2520.1,2519.4,2.4903]
[1724855980282,1.024191,2520.4,2519.6,3.96877]
[1724855980283,3.96791,2520.3,2519.6,3.96877]
[1724855980508,3.96791,2520.3,2519.7,0.55]
[1724855980509,3.96804,2520.2,2519.7,0.55]
[1724855980712,3.96804,2520.2,2519.7,0.6774602]
[1724855980918,7.9358,2520.3,2519.7,4.6461802]
[1724855981152,6.27418,2520.6,2519.8,4.04778725]
[1724855981312,3.0,2520.5,2519.9,0.55]
[1724855981512,3.96794,2520.2,2519.9,0.12732748]
[1724855981951,3.96825,2520.0,2519.7,0.55]
[1724855982259,3.96825,2520.0,2519.6,0.55]
[1724855982746,3.96813,2520.1,2519.6,0.55]
[1724855983467,3.96828,2520.0,2519.7,0.12750245]
[1724855983761,3.96856,2519.8,2519.7,0.12750245]
[1724855984269,3.96856,2519.8,2519.7,0.12753766]
[1724855984456,3.96841,2519.9,2519.3,3.96926]
[1724855984748,3.96818,2520.1,2519.7,0.12761513]
[1724855984952,3.0,2520.0,2519.6,3.96873]
[1724855985159,3.0,2520.2,2519.8,0.12754876]
[1724855985313,3.9681,2520.1,2519.7,0.12691763]
[1724855985524,3.9681,2520.1,2519.4,7.93818]
[1724855985525,3.0,2520.0,2519.9,0.1267849]
[1724855986047,3.0,2520.0,2519.5,3.96904]
[1724855986225,3.0,2520.0,2519.9,0.1267849]
[1724855986563,6.96834,2520.0,2519.6,0.55]
[1724855986764,6.96834,2520.0,2519.9,0.1267849]
[1724855986932,3.96865,2519.8,2519.3,3.96927]
[1724855987135,3.96865,2519.8,2519.3,4.366197]
[1724855987949,3.96865,2519.8,2519.4,3.96917]
[1724855988200,6.96831,2520.0,2519.4,3.96917]
[1724855988201,2.3878,2520.3,2519.5,2.3782]
[1724855988395,3.96795,2520.2,2519.6,4.76450704]
[1724855989044,5.3878,2520.3,2519.6,4.76450704]
[1724855989184,3.96795,2520.2,2519.6,8.73323704]
[1724855989507,3.96795,2520.2,2519.6,8.48751]
[1724855989707,7.93601,2520.2,2519.6,8.48753]
[1724855989923,3.96795,2520.2,2519.7,3.96861]
[1724855990123,3.96795,2520.2,2519.8,0.55]
[1724855990288,7.93597,2520.2,2519.8,0.55]
[1724855990488,3.96813,2520.1,2519.7,0.55]
[1724855990807,3.96827,2520.0,2519.7,0.55]
[1724855990996,3.96827,2520.0,2519.6,0.55]
[1724855991208,3.96881,2519.7,2519.2,3.96943]
[1724855991370,3.96858,2519.8,2519.2,3.96943]
[1724855991573,3.96858,2519.8,2519.3,3.96928]
[1724855992114,2.2985,2519.9,2519.0,3.96971]
[1724855992426,3.96913,2519.5,2518.9,3.96997]
[1724855992719,3.96913,2519.5,2519.0,3.96979]
[1724855993315,3.96896,2519.6,2519.1,3.96966]
[1724855993518,3.96896,2519.6,2519.2,0.55]
[1724855994710,5.2985,2519.9,2519.2,0.55]
[1724855994871,6.22753,2520.2,2519.6,3.96886]
[1724855995073,3.96836,2520.0,2519.3,3.96923]
[1724855995278,3.0,2519.9,2519.4,0.55]
[1724855995475,6.96841,2519.9,2519.4,4.51911]
[1724855995891,6.96841,2519.9,2519.4,0.55]
[1724855996088,3.96883,2519.7,2519.1,3.96954]
[1724855996327,6.37433,2519.7,2519.2,4.5195]
[1724855996822,6.37433,2519.7,2519.2,0.55]
[1724855997023,3.96935,2519.3,2519.2,0.55]
[1724855997191,3.96935,2519.3,2518.8,3.97013]
[1724855997394,3.9697,2519.1,2518.5,2.4773]
[1724855997589,3.96935,2519.3,2518.6,0.24773]
[1724855997932,3.96935,2519.3,2518.7,3.97028]
[1724855997933,3.96955,2519.2,2518.7,3.97028]
[1724855998139,3.96967,2519.1,2518.5,3.97049]
[1724855998443,3.96967,2519.1,2518.6,4.098008]
[1724855998733,3.96967,2519.1,2518.6,4.097998]
[1724855998924,3.96945,2519.3,2518.7,0.4097998]
[1724855999130,3.0,2519.2,2518.6,0.127648]
[1724855999440,3.0,2519.2,2518.3,3.97087]
[1724855999441,3.0,2519.2,2518.7,0.12758158]
[1724855999604,3.96945,2519.3,2518.7,0.12758158]
[1724855999605,6.45211,2519.5,2518.8,3.97004]
[1724855999811,3.0,2519.4,2518.9,0.67744875]
[1724855999992,6.96928,2519.4,2518.9,0.67744875]
[1724856000198,6.96928,2519.4,2518.9,0.12744875]
[1724856000199,3.96967,2519.1,2518.9,0.12744875]
[1724856000527,3.0,2519.4,2519.0,0.55]
[1724856000738,6.96922,2519.4,2519.0,0.67797411]
[1724856001109,8.311354,2519.4,2519.0,0.67797411]
[1724856001311,3.0,2519.4,2519.0,4.64779411]
[1724856001550,3.96923,2519.4,2519.0,0.67797411]
[1724856002515,10.42124,2519.5,2519.0,0.67797411]
[1724856002712,3.0,2519.7,2519.0,5.50945252]
[1724856002713,6.9688,2519.7,2519.0,5.50945252]
[1724856002930,6.9688,2519.7,2519.1,4.04896367]
[1724856002931,3.96893,2519.6,2519.1,4.04896367]
[1724856003186,3.96852,2519.9,2519.2,1.41966178]
[1724856003496,3.96817,2520.1,2519.6,3.96887]
[1724856003854,3.96817,2520.1,2519.7,0.12750939]
[1724856004184,2.3228,2520.2,2519.7,4.09612939]
[1724856004478,3.96787,2520.3,2519.8,0.55]
[1724856004678,3.96787,2520.3,2519.8,4.51851]
[1724856004889,3.96767,2520.4,2519.9,0.12737667]
[1724856005170,3.96767,2520.4,2519.9,4.09576667]
[1724856005392,6.44395,2520.5,2519.9,8.06415667]
[1724856005539,6.44395,2520.5,2519.9,4.09576667]
[1724856005745,10.41153,2520.5,2519.9,4.09569667]
[1724856006286,3.517553,2520.5,2519.9,0.12737667]
[1724856006594,18.3081,2520.0,2519.9,0.12737667]
[1724856006742,3.97023,2518.8,2518.2,3.97108]
[1724856006957,2.3772,2519.1,2517.7,1.63359354]
[1724856006958,4.367323,2518.7,2517.9,10.21992]
[1724856007273,3.97055,2518.6,2517.9,10.21992]
[1724856007452,3.9703,2518.7,2518.0,0.12439254]
[1724856007655,3.9703,2518.7,2518.1,3.97122]
[1724856007858,3.97009,2518.9,2518.2,0.12471047]
[1724856008067,3.97009,2518.9,2517.7,3.97181]
[1724856008068,7.9418,2518.4,2517.5,2.2769]
[1724856008281,6.30171,2518.8,2518.1,3.97122]
[1724856008436,3.97086,2518.4,2517.7,3.9718]
[1724856008642,3.97086,2518.4,2517.8,4.09659631]
[1724856008949,3.97051,2518.6,2517.9,3.97155]
[1724856009151,4.9637281,2518.6,2517.8,0.12497631]
[1724856009354,3.97109,2518.2,2518.0,0.12484338]
[1724856009555,3.97088,2518.4,2517.9,0.12490984]
[1724856009744,3.97088,2518.4,2518.1,0.12477692]
[1724856010093,7.94186,2518.3,2518.2,0.12471047]
[1724856010243,13.40746,2518.3,2518.2,0.12471047]
[1724856010584,13.40746,2518.3,2517.2,6.39945]
[1724856010585,3.97156,2517.9,2517.2,6.39945]
[1724856010770,7.38037839,2518.3,2517.3,0.07943015]
[1724856010972,6.9712,2518.2,2517.5,3.97205]
[1724856011286,6.9712,2518.2,2517.6,0.12510925]
[1724856011585,3.97155,2518.0,2517.6,0.12510925]
[1724856011897,3.97155,2518.0,2517.3,3.97248]
[1724856012179,3.97158,2517.9,2517.7,0.12504278]
[1724856012375,3.97155,2518.0,2517.3,3.97246]
[1724856012582,3.97155,2518.0,2517.8,0.12497631]
[1724856012782,3.97155,2518.0,2517.3,3.97246]
[1724856012990,3.97155,2518.0,2517.9,0.12582647]
[1724856013281,3.97193,2517.7,2517.1,3.97278]
[1724856013451,3.97219,2517.5,2516.8,3.97315]
[1724856013652,3.97239,2517.4,2516.8,4.99311]
[1724856013872,3.97219,2517.5,2516.8,4.99311]
[1724856014051,9.34774,2517.7,2516.8,4.99311]
[1724856014251,2.3758,2517.6,2516.8,3.97315]
[1724856014564,3.9722,2517.5,2516.9,0.12649137]
[1724856014881,3.97245,2517.4,2516.8,3.97315]
[1724856015052,4.60725,2517.4,2516.9,0.12649137]
[1724856015484,4.60725,2517.4,2516.8,3.97315]
[1724856015690,3.97245,2517.4,2516.9,0.67776765]
[1724856015886,3.97245,2517.4,2516.9,0.55]
[1724856016855,3.9722,2517.5,2516.9,0.55]
[1724856017053,3.9722,2517.5,2517.0,0.12770114]
[1724856017771,5.304195,2517.5,2517.0,0.12770114]
[1724856017977,3.9728,2517.2,2517.0,0.12770114]
[1724856018215,7.94564,2517.1,2517.0,0.12770114]
[1724856018386,7.94649,2516.9,2516.2,3.97415]
[1724856018551,3.97321,2516.9,2516.2,3.97414]
[1724856018754,3.9733,2516.8,2516.3,0.12835739]
[1724856019084,3.9733,2516.8,2515.7,2.4312]
[1724856019085,0.4767774,2516.8,2515.7,2.4312]
[1724856019286,3.97305,2517.0,2516.2,3.97415]
[1724856019498,3.97335,2516.8,2516.2,7.94827]
[1724856019796,3.97335,2516.8,2516.3,0.12835739]
[1724856020157,7.370565,2516.9,2516.2,3.97412]
[1724856020368,4.7104565,2516.8,2516.4,0.1287003]
[1724856020661,13.39965,2516.7,2516.5,0.12863376]
[1724856020859,7.94722,2516.6,2516.5,0.12863376]
[1724856021104,7.94722,2516.6,2515.8,3.97477]
[1724856021105,3.97361,2516.6,2515.9,0.07948598]
[1724856021317,3.97361,2516.6,2515.6,3.9751]
[1724856021318,2.4525,2516.5,2515.6,3.9751]